bitfinex-derivatives/quotes_BTCF0:USTF0_20250327
["timestamp","ask_amount","ask_price","bid_price","bid_amount"]
[1743095458939,0.24300049,86945.0,86944.0,0.5830372]
[1743095459139,0.35803639,86945.0,86944.0,0.5830372]
[1743095459446,0.1210359,86945.0,86944.0,0.5830372]
[1743095459635,0.1170359,86945.0,86944.0,0.5820372]
[1743095459839,0.1170359,86945.0,86944.0,0.5305372]
[1743095460138,0.1160359,86945.0,86944.0,0.5305372]
[1743095460334,0.1170359,86945.0,86944.0,0.1697372]
[1743095460539,0.1150465,86937.0,86936.0,0.00025261]
[1743095460734,0.4758465,86937.0,86936.0,0.00077261]
[1743095460948,0.1150743,86916.0,86915.0,0.3893429]
[1743095462148,0.2206743,86916.0,86915.0,0.3893429]
[1743095462343,0.2206743,86916.0,86915.0,0.3903429]
[1743095462747,0.2206743,86916.0,86915.0,0.001]
[1743095463547,0.2206743,86916.0,86915.0,0.002]
[1743095463747,0.2206743,86916.0,86915.0,0.1170756]
[1743095463945,0.2206743,86916.0,86915.0,0.002]
[1743095466140,0.2221943,86916.0,86915.0,0.002]
[1743095466540,0.35945467,86916.0,86915.0,0.002]
[1743095467550,0.35945467,86916.0,86909.0,8e-05]
[1743095467551,0.1150822,86910.0,86909.0,8e-05]
[1743095467740,0.11664221,86910.0,86909.0,0.1151635]
[1743095467946,0.11664221,86910.0,86909.0,8e-05]
[1743095468146,0.11664221,86910.0,86909.0,0.1151635]
[1743095468441,0.16854221,86910.0,86909.0,8e-05]
[1743095468644,0.22094221,86910.0,86909.0,8e-05]
[1743095468849,0.22094221,86910.0,86909.0,0.1181635]
[1743095469046,0.22094221,86910.0,86909.0,0.1211635]
[1743095469253,0.22094221,86910.0,86909.0,0.00608]
[1743095469946,0.22094221,86910.0,86909.0,0.1211635]
[1743095470148,0.00156001,86910.0,86909.0,0.1211635]
[1743095470345,0.1150759,86915.0,86914.0,0.1726121]
[1743095470555,0.1165559,86915.0,86914.0,0.6352121]
[1743095471458,0.1689559,86915.0,86914.0,0.6362121]
[1743095471657,0.1689559,86915.0,86914.0,0.001]
[1743095471847,0.1689559,86915.0,86914.0,0.1170769]
[1743095472555,0.1689559,86915.0,86914.0,0.1671769]
[1743095473455,0.27187824,86915.0,86914.0,0.2196769]
[1743095473759,0.21947824,86915.0,86914.0,0.2196769]
[1743095474951,0.26917824,86915.0,86914.0,0.2196769]
[1743095475152,0.21947794,86915.0,86914.0,0.2196769]
[1743095475869,0.00870887,86930.0,86917.0,0.0575358]
[1743095476159,0.0575078,86961.0,86949.0,0.1150306]
[1743095476361,0.0575105,86957.0,86956.0,0.1150213]
[1743095476561,0.0575105,86957.0,86956.0,0.4764613]
[1743095476758,0.05875051,86957.0,86956.0,0.4764613]
[1743095477354,0.11265051,86957.0,86956.0,0.5777613]
[1743095477955,0.11765051,86957.0,86956.0,0.5777613]
[1743095478150,0.06414001,86957.0,86956.0,0.5777613]
[1743095478368,0.17916001,86957.0,86956.0,0.5777613]
[1743095478565,0.01024001,86957.0,86956.0,0.5777613]
[1743095478753,0.27447933,86966.0,86962.0,0.0575067]
[1743095479073,0.11606191,86965.0,86964.0,0.4758108]
[1743095479255,0.11606191,86965.0,86964.0,0.4764108]
[1743095479456,0.11606191,86965.0,86964.0,0.5777108]
[1743095480052,0.00105251,86965.0,86964.0,0.5777108]
[1743095480256,0.00205251,86965.0,86964.0,0.5777108]
[1743095480866,0.00105251,86965.0,86964.0,0.5777108]
[1743095481160,0.00405251,86965.0,86964.0,0.5777108]
[1743095481366,0.0031725,86965.0,86964.0,0.5777108]
[1743095481565,0.00205251,86965.0,86964.0,0.5777108]
[1743095481766,0.00405251,86965.0,86964.0,0.5777108]
[1743095482860,0.0031725,86965.0,86964.0,0.5777108]
[1743095483870,0.05435251,86965.0,86964.0,0.5777108]
[1743095484766,0.00405251,86965.0,86964.0,0.5777108]
[1743095484966,0.0031725,86965.0,86964.0,0.5777108]
[1743095485167,0.00405251,86965.0,86964.0,0.5777108]
[1743095485761,0.0031725,86965.0,86964.0,0.5777108]
[1743095486062,0.00405251,86965.0,86964.0,0.5777108]
[1743095486257,0.11906191,86965.0,86964.0,0.4136]
[1743095486457,0.11906191,86965.0,86964.0,0.3614]
[1743095486863,0.17186191,86965.0,86964.0,0.3614]
[1743095487264,0.17186191,86965.0,86964.0,0.0006]
[1743095487468,0.1150306,86949.0,86938.0,0.3608]
[1743095487673,0.1150306,86949.0,86945.0,0.1150355]
[1743095487674,0.11591061,86949.0,86945.0,0.1150355]
[1743095487862,0.11591061,86949.0,86948.0,0.0007725]
[1743095488264,0.11591061,86949.0,86948.0,0.1158044]
[1743095488466,0.05368001,86949.0,86948.0,0.1158044]
[1743095488668,0.0528,86949.0,86948.0,0.2158044]
[1743095488872,0.05368001,86949.0,86948.0,0.2651044]
[1743095489267,0.1678306,86949.0,86948.0,0.2651044]
[1743095489470,0.16879061,86949.0,86948.0,0.2651044]
[1743095491069,0.16879061,86949.0,86948.0,0.2661044]
[1743095491367,0.16879061,86949.0,86948.0,0.1178044]
[1743095492168,0.16879061,86949.0,86948.0,0.1706044]
[1743095492766,0.17279061,86949.0,86948.0,0.1686044]
[1743095493175,0.00496001,86949.0,86948.0,0.2670044]
[1743095493374,0.002,86949.0,86948.0,0.2670044]
[1743095493570,0.00392,86949.0,86948.0,0.2670044]
[1743095493967,0.003,86949.0,86948.0,0.2670044]
[1743095494173,0.1150215,86956.0,86955.0,0.1150213]
[1743095494373,0.00088001,86956.0,86955.0,0.4765013]
[1743095494570,0.0001725,86965.0,86964.0,0.1150108]
[1743095494771,0.0001725,86965.0,86964.0,0.4764108]
[1743095495177,0.1151819,86965.0,86964.0,0.5770108]
[1743095495372,0.11606191,86965.0,86964.0,0.5770108]
[1743095496281,0.11806191,86965.0,86964.0,0.5770108]
[1743095496578,8e-05,86974.0,86964.0,0.5770108]
[1743095496579,8e-05,86974.0,86967.0,0.0575028]
[1743095496785,0.1149989,86974.0,86973.0,0.5332969]
[1743095496984,0.11559891,86974.0,86973.0,0.5338969]
[1743095497489,0.11559891,86974.0,86973.0,0.6371969]
[1743095497784,0.00060001,86974.0,86973.0,0.6371969]
[1743095497976,0.051,86975.0,86974.0,0.1149975]
[1743095498174,0.051,86975.0,86974.0,0.1155975]
[1743095498374,0.1659962,86975.0,86974.0,0.2188975]
[1743095498583,0.1666362,86975.0,86974.0,0.2188975]
[1743095500679,0.1666362,86975.0,86974.0,0.1155975]
[1743095502584,0.1666362,86975.0,86974.0,0.0006]
[1743095502883,0.1150015,86971.0,86970.0,0.1150018]
[1743095503182,0.11560151,86971.0,86970.0,0.1156018]
[1743095504277,0.21840151,86971.0,86970.0,0.1156018]
[1743095506191,0.21840151,86971.0,86970.0,0.4764018]
[1743095507600,0.10340001,86971.0,86970.0,0.4764018]
[1743095507801,0.21840151,86971.0,86970.0,0.5752018]
[1743095510296,0.21840151,86971.0,86970.0,0.4764018]
[1743095510802,0.26900151,86971.0,86970.0,0.4764018]
[1743095511306,0.21840151,86971.0,86970.0,0.4764018]
[1743095511500,0.21840151,86971.0,86970.0,0.5292018]
[1743095512203,0.21840151,86971.0,86970.0,0.5801018]
[1743095512702,0.21840151,86971.0,86970.0,0.4764018]
[1743095518899,0.21840151,86971.0,86970.0,0.0006]
[1743095519099,0.1150041,86969.0,86968.0,0.1150855]
[1743095519308,0.11560411,86969.0,86968.0,0.1156455]
[1743095519513,0.1725096,86968.0,86967.0,0.1150058]
[1743095519715,0.17310831,86968.0,86967.0,0.00064]
[1743095519904,0.27760831,86968.0,86967.0,0.00064]
[1743095520702,0.1150068,86967.0,86966.0,0.0001725]
[1743095520899,0.1156468,86967.0,86966.0,0.0001725]
[1743095521104,0.2155468,86967.0,86966.0,0.0001725]
[1743095521312,0.2155468,86967.0,86966.0,0.0007725]
[1743095521512,0.2155468,86967.0,86966.0,0.0001725]
[1743095521711,0.10054,86967.0,86966.0,0.4765806]
[1743095522011,0.2149068,86967.0,86966.0,0.5253806]
[1743095522222,0.00060001,86967.0,86966.0,0.5743806]
[1743095522508,0.001,86968.0,86967.0,0.1150068]
[1743095522709,0.1160055,86968.0,86967.0,0.1150068]
[1743095522907,0.1160055,86968.0,86967.0,0.2128068]
[1743095523110,0.00168,86968.0,86967.0,0.2134068]
[1743095523308,0.001,86968.0,86967.0,0.2128068]
[1743095524001,0.0575021,86969.0,86968.0,0.1725048]
[1743095524516,0.0575021,86969.0,86968.0,0.2753048]
[1743095524913,0.1573997,86973.0,86972.0,0.1150002]
[1743095525308,0.1573997,86973.0,86972.0,0.2699002]
[1743095526114,0.1150055,86968.0,86967.0,0.4758055]
[1743095526505,0.2155055,86968.0,86967.0,0.4758055]
[1743095526712,0.2155055,86968.0,86967.0,0.6269055]
[1743095527811,0.0574997,86973.0,86971.0,0.1725009]
[1743095527812,0.0584997,86973.0,86971.0,0.1725009]
[1743095528013,0.001,86973.0,86972.0,0.1150002]
[1743095528216,0.1151605,86982.0,86981.0,0.1149883]
[1743095528516,0.11576051,86982.0,86981.0,0.4763883]
[1743095528815,0.28642691,86982.0,86981.0,0.4763883]
[1743095529217,0.34392041,86982.0,86981.0,0.4763883]
[1743095529716,0.17143891,86982.0,86981.0,0.4763883]
[1743095529908,8e-05,86987.0,86981.0,0.4763883]
[1743095529909,0.59964656,87016.0,86989.0,0.0574884]
[1743095530216,1e-08,87001.0,87000.0,0.4757632]
[1743095530413,0.1149514,87009.0,87008.0,0.1149526]
[1743095530608,0.1158714,87009.0,87008.0,0.4757526]
[1743095530807,0.1158714,87009.0,87008.0,0.4766726]
[1743095532513,0.2205714,87009.0,87008.0,0.4766726]
[1743095534311,0.2205714,87009.0,87008.0,0.36172]
[1743095534717,0.2205714,87009.0,87008.0,0.4766726]
[1743095534913,0.2205714,87009.0,87008.0,0.36172]
[1743095535113,0.2205714,87009.0,87008.0,0.4766726]
[1743095537623,0.00092,87009.0,87008.0,0.4766726]
[1743095537820,0.1724177,87014.0,87013.0,0.1149447]
[1743095538123,0.1733377,87014.0,87013.0,0.1158647]
[1743095538318,0.2802377,87014.0,87013.0,0.1158647]
[1743095538518,0.058393,87014.0,87013.0,0.1158647]
[1743095539318,0.165293,87014.0,87013.0,0.1158647]
[1743095541013,0.165293,87014.0,87013.0,0.00092]
[1743095541425,0.165293,87014.0,87013.0,0.115866]
[1743095544624,0.165293,87014.0,87013.0,0.00092]
[1743095545125,0.526093,87014.0,87013.0,0.00092]
[1743095545331,0.1724401,87003.0,87002.0,0.11496]
[1743095545529,0.1733601,87003.0,87002.0,0.22462]
[1743095546125,0.2801601,87003.0,87002.0,0.22462]
[1743095546426,0.2801601,87003.0,86986.0,0.3608]
[1743095546427,0.0574886,86990.0,86986.0,0.3608]
[1743095546730,0.1724685,86988.0,86987.0,0.0532]
[1743095547024,0.1731085,86988.0,86987.0,0.05384]
[1743095547219,0.2799085,86988.0,86987.0,0.05384]
[1743095547415,0.17382399,86988.0,86985.0,0.20525888]
[1743095547632,0.1149817,86986.0,86985.0,0.20585888]
[1743095547821,0.1157017,86986.0,86985.0,0.20585888]
[1743095548019,0.2241017,86986.0,86985.0,0.20585888]
[1743095548519,0.33906338,86986.0,86985.0,0.20585888]
[1743095549422,0.33906338,86986.0,86985.0,0.20685888]
[1743095550023,0.33906338,86986.0,86985.0,0.20785888]
[1743095550228,0.33906338,86986.0,86985.0,0.20685888]
[1743095550430,0.33906338,86986.0,86985.0,0.20585888]
[1743095551027,0.1149896,86980.0,86979.0,0.0001724]
[1743095551224,0.11586961,86980.0,86979.0,0.0001724]
[1743095551629,0.22316961,86980.0,86979.0,0.0001724]
[1743095552725,0.0574983,86975.0,86963.0,0.00172484]
[1743095552927,0.1150253,86953.0,86952.0,0.1045]
[1743095553227,0.1150211,86957.0,86956.0,0.1150187]
[1743095553628,0.1150253,86954.0,86953.0,0.1150243]
[1743095553828,0.1150253,86954.0,86953.0,0.2276243]
[1743095554144,0.1159453,86954.0,86953.0,0.2282243]
[1743095554438,0.1150253,86954.0,86953.0,0.2276243]
[1743095555235,0.1150253,86954.0,86953.0,0.1126]
[1743095555529,0.2253253,86954.0,86953.0,0.1126]
[1743095555730,0.2253253,86954.0,86953.0,0.2276253]
[1743095556335,0.2253253,86954.0,86953.0,0.2306253]
[1743095556531,0.2253253,86954.0,86953.0,0.2336253]
[1743095558733,0.2253253,86954.0,86953.0,0.23454891]
[1743095559039,0.22620531,86954.0,86953.0,0.23514891]
[1743095560032,0.11590531,86954.0,86953.0,0.23514891]
[1743095561335,0.11590531,86954.0,86953.0,0.12012361]
[1743095561534,0.22340531,86954.0,86953.0,0.12012361]
[1743095561942,0.22340531,86954.0,86953.0,0.23514891]
[1743095566037,0.22340531,86954.0,86950.0,8e-05]
[1743095566038,0.115028,86951.0,86950.0,8e-05]
[1743095566243,0.116188,86951.0,86950.0,0.0006]
[1743095566547,0.1150306,86949.0,86948.0,0.00017251]
[1743095566846,0.11611061,86949.0,86948.0,0.00077251]
[1743095567047,0.21551061,86949.0,86948.0,0.00017251]
[1743095567646,0.21551061,86949.0,86948.0,0.00417251]
[1743095568248,0.21551061,86949.0,86948.0,0.00077251]
[1743095568944,0.21551061,86949.0,86948.0,0.00377251]
[1743095569746,0.21651061,86949.0,86948.0,0.00077251]
[1743095572449,0.21651061,86949.0,86948.0,0.00017251]
[1743095573256,0.21651061,86949.0,86948.0,0.00077251]
[1743095573755,0.21651061,86949.0,86948.0,0.00017251]
[1743095574349,0.21651061,86949.0,86942.0,8e-05]
[1743095574350,0.1150385,86943.0,86942.0,8e-05]
[1743095574551,0.1150385,86943.0,86939.0,8e-05]
[1743095574552,0.1150425,86940.0,86939.0,8e-05]
[1743095574749,0.1150544,86931.0,86930.0,0.1061]
[1743095574942,0.1162144,86931.0,86930.0,0.10678]
[1743095575147,0.1162144,86931.0,86930.0,0.1061]
[1743095575349,0.22871272,86931.0,86930.0,0.1067]
[1743095575856,0.22871272,86931.0,86930.0,0.1061]
[1743095576267,0.22871272,86931.0,86930.0,0.003]
[1743095576460,0.22871272,86931.0,86930.0,0.007]
[1743095576862,0.22871272,86931.0,86930.0,0.006]
[1743095577266,0.22871272,86931.0,86930.0,0.005]
[1743095581070,0.22871272,86931.0,86930.0,0.0056]
[1743095581272,0.1667144,86931.0,86930.0,0.1200557]
[1743095581573,0.1162144,86931.0,86930.0,0.0056]
[1743095581775,0.2217144,86931.0,86930.0,0.0056]
[1743095582164,0.23112621,86931.0,86930.0,0.0056]
[1743095582767,0.11607181,86931.0,86906.0,0.06697128]
[1743095582971,0.1150862,86907.0,86906.0,0.0581413]
[1743095583173,0.11616621,86907.0,86906.0,0.0581413]
[1743095583668,0.00108001,86907.0,86906.0,0.06775493]
[1743095583867,0.1150824,86916.0,86915.0,0.2301366]
[1743095584071,0.11616241,86916.0,86915.0,0.1161505]
[1743095584474,0.00108001,86916.0,86915.0,0.1161505]
[1743095584769,0.001,86931.0,86923.0,0.115065]
[1743095584971,0.11599621,86924.0,86923.0,0.115665]
[1743095585173,0.11599621,86924.0,86923.0,0.272665]
[1743095585673,0.11599621,86924.0,86923.0,0.633465]
[1743095586876,0.11599621,86924.0,86923.0,0.637465]
[1743095590471,0.00093251,86924.0,86923.0,0.637465]
[1743095590669,0.00017251,86924.0,86923.0,0.637465]
[1743095590879,0.00093251,86924.0,86923.0,0.637465]
[1743095591072,0.25203707,86941.0,86940.0,0.1150425]
[1743095591273,0.25267707,86941.0,86940.0,0.1157225]
[1743095591473,0.26231316,86941.0,86940.0,0.10488]
[1743095591665,0.36771316,86941.0,86940.0,0.1042]
[1743095592070,0.36771316,86941.0,86940.0,0.2198825]
[1743095592669,0.36771316,86941.0,86940.0,0.00064]
[1743095592983,0.1150504,86934.0,86933.0,0.1617255]
[1743095593177,0.1156904,86934.0,86933.0,0.1623655]
[1743095593381,0.2191904,86934.0,86933.0,0.1623655]
[1743095594571,0.1156904,86934.0,86933.0,0.1643655]
[1743095595673,0.1156904,86934.0,86933.0,0.1663655]
[1743095597582,0.2239904,86934.0,86933.0,0.1663655]
[1743095599187,0.2239904,86934.0,86933.0,0.10884]
[1743095599787,0.2239904,86934.0,86933.0,0.00464]
[1743095599982,0.2778904,86934.0,86933.0,0.004]
[1743095600391,0.2778904,86934.0,86933.0,0.00468]
[1743095600578,0.2778904,86934.0,86933.0,0.004]
[1743095600981,0.2778904,86934.0,86933.0,0.00468]
[1743095601178,0.2778904,86934.0,86933.0,0.004]
[1743095603287,0.2778904,86934.0,86933.0,0.00472]
[1743095603482,0.2239904,86934.0,86933.0,0.2271718]
[1743095603992,0.36098627,86934.0,86933.0,0.11212]
[1743095604284,0.36098627,86934.0,86933.0,0.2271718]
[1743095604882,0.36098627,86934.0,86933.0,0.11212]
[1743095605085,0.36098627,86934.0,86933.0,0.2264518]
[1743095605282,0.36098627,86934.0,86933.0,0.2270918]
[1743095605677,0.36098627,86934.0,86933.0,0.11204]
[1743095605879,0.36098627,86934.0,86933.0,0.2264518]
[1743095606080,0.36098627,86934.0,86933.0,0.2270918]
[1743095607591,0.2239904,86934.0,86933.0,0.2270918]
[1743095608396,0.2239904,86934.0,86933.0,0.11204]
[1743095611281,0.2239904,86934.0,86933.0,0.2270918]
[1743095614194,0.00064,86934.0,86933.0,0.2270918]
[1743095614794,0.2754648,86937.0,86936.0,0.1150478]
[1743095614987,0.2761048,86937.0,86936.0,0.1156878]
[1743095615192,0.2761048,86937.0,86936.0,0.2801878]
[1743095616194,0.2761048,86937.0,86936.0,0.29115431]
[1743095616596,0.1610556,86937.0,86936.0,0.29115431]
[1743095616794,0.1035323,86937.0,86936.0,0.29215431]
[1743095616997,0.2185788,86937.0,86936.0,0.29215431]
[1743095617403,0.2185788,86937.0,86936.0,0.2821878]
[1743095617896,0.1035323,86937.0,86936.0,0.2821878]
[1743095618099,0.00064,86937.0,86936.0,0.2821878]
[1743095618297,0.0575206,86941.0,86936.0,0.2821878]
[1743095618298,0.057522,86939.0,86938.0,0.1725644]
[1743095618498,0.058162,86939.0,86938.0,0.2821044]
[1743095618893,0.00064,86939.0,86938.0,0.2821044]
[1743095619093,0.1156838,86939.0,86938.0,0.2821044]
[1743095619498,0.00064,86939.0,86938.0,0.2831044]
[1743095619696,0.2179306,86944.0,86943.0,0.1150385]
[1743095619895,0.2185706,86944.0,86943.0,0.1156785]
[1743095620097,0.2185695,86944.0,86943.0,0.2245785]
[1743095620508,0.3243695,86944.0,86943.0,0.2245785]
[1743095621200,0.2224772,86944.0,86943.0,0.2245785]
[1743095622206,0.2234772,86944.0,86943.0,0.2245785]
[1743095622399,0.1176772,86944.0,86943.0,0.2245785]
[1743095623002,0.2234772,86944.0,86943.0,0.2245785]
[1743095624003,0.00264,86944.0,86943.0,0.2245785]
[1743095624504,0.002,86944.0,86943.0,0.2245785]
[1743095624699,0.00268,86944.0,86943.0,0.2245785]
[1743095625005,0.1177172,86944.0,86943.0,0.2245785]
[1743095625609,0.00268,86944.0,86943.0,0.2245785]
[1743095625901,0.1170372,86944.0,86943.0,0.2245785]
[1743095626106,0.00264,86944.0,86943.0,0.2245785]
[1743095626307,0.002,86944.0,86943.0,0.2245785]
[1743095626507,0.1176772,86944.0,86943.0,0.2245785]
[1743095627007,0.1176772,86944.0,86943.0,0.5853785]
[1743095627208,0.00264,86944.0,86943.0,0.5853785]
[1743095627406,0.1176772,86944.0,86943.0,0.5853785]
[1743095631405,0.1740772,86944.0,86943.0,0.5853785]
[1743095632105,0.2301772,86944.0,86943.0,0.5853785]
[1743095634817,0.2301772,86944.0,86943.0,0.2245785]
[1743095635111,0.5909772,86944.0,86943.0,0.00064]
[1743095635408,0.6470772,86944.0,86943.0,0.00064]
[1743095638412,0.1150425,86940.0,86939.0,0.20664667]
[1743095638606,0.2257625,86940.0,86939.0,0.15670447]
[1743095638914,0.1150584,86928.0,86927.0,0.34314289]
[1743095639113,0.8376584,86928.0,86927.0,0.34382289]
[1743095639316,1.0053584,86928.0,86927.0,0.34382289]
[1743095640411,1.0053584,86928.0,86927.0,0.34582289]
[1743095641009,1.0053584,86928.0,86927.0,0.00268]
[1743095641205,1.0053584,86928.0,86927.0,0.002]
[1743095641615,1.0063584,86928.0,86927.0,0.002]
[1743095641909,0.96190675,86928.0,86927.0,0.002]
[1743095642309,0.96190675,86928.0,86924.0,0.1126]
[1743095642310,0.1150624,86925.0,86924.0,0.2276637]
[1743095642514,0.1159824,86925.0,86924.0,0.2282637]
[1743095642714,0.2237824,86925.0,86924.0,0.2282637]
[1743095645118,0.00092,86925.0,86924.0,0.2282637]
[1743095645719,0.00092,86925.0,86924.0,0.5890637]
[1743095646316,0.10289228,86927.0,86926.0,0.115061]
[1743095646613,0.10381228,86927.0,86926.0,0.115661]
[1743095646814,0.1150387,86943.0,86931.0,0.1150544]
[1743095647015,0.13782971,86932.0,86931.0,0.4764544]
[1743095647217,0.10282698,86940.0,86939.0,0.1150438]
[1743095647416,0.21862948,86940.0,86939.0,0.4765638]
[1743095647722,0.21862948,86940.0,86939.0,0.5857638]
[1743095648120,0.10358698,86940.0,86939.0,0.5857638]
[1743095648629,0.21862948,86940.0,86939.0,0.5857638]
[1743095649625,0.21862948,86940.0,86939.0,0.5867638]
[1743095651127,0.33002948,86940.0,86939.0,0.36252]
[1743095651318,0.33002948,86940.0,86939.0,0.4775638]
[1743095651719,0.2272025,86940.0,86939.0,0.5318638]
[1743095652025,0.2272025,86940.0,86939.0,0.6399638]
[1743095652528,0.2292025,86940.0,86939.0,0.6389638]
[1743095653214,0.2282025,86940.0,86939.0,0.6389638]
[1743095653631,0.2282025,86940.0,86939.0,0.5846638]
[1743095654326,0.2292025,86940.0,86939.0,0.5846638]
[1743095660326,0.2292025,86940.0,86939.0,0.46962]
[1743095660526,0.2292025,86940.0,86939.0,0.5846638]
[1743095662531,0.2292025,86940.0,86939.0,0.2238638]
[1743095667432,0.1178025,86940.0,86939.0,0.2238638]
[1743095668240,0.1178025,86940.0,86939.0,0.5846638]
[1743095668536,0.00076,86940.0,86939.0,0.5846638]
[1743095668727,0.1158025,86940.0,86939.0,0.5846638]
[1743095669131,0.1168025,86940.0,86939.0,0.5846638]
[1743095670635,0.1168025,86940.0,86939.0,0.59473407]
[1743095670830,0.1158025,86940.0,86939.0,0.59473407]
[1743095671829,0.00076,86940.0,86939.0,0.59473407]
[1743095672043,0.1158025,86940.0,86939.0,0.59473407]
[1743095673336,0.00076,86940.0,86939.0,0.59473407]
[1743095673533,0.00017251,86949.0,86948.0,0.1150319]
[1743095673844,0.28547943,86958.0,86957.0,0.11502]
[1743095674332,0.28651944,86958.0,86957.0,0.11598]
[1743095674535,0.1150205,86958.0,86957.0,0.23112]
[1743095674730,0.2269205,86958.0,86957.0,0.23112]
[1743095675539,0.20520942,86963.0,86962.0,0.1150134]
[1743095675940,0.20520942,86963.0,86962.0,0.2273134]
[1743095676138,0.32022152,86963.0,86962.0,0.2273134]
[1743095676540,0.37372152,86963.0,86962.0,0.2273134]
[1743095677043,0.31490942,86963.0,86962.0,0.6414134]
[1743095677358,0.1149981,86974.0,86967.0,0.0575028]
[1743095677543,0.1149981,86974.0,86962.0,0.5264]
[1743095677544,0.2821974,86974.0,86973.0,0.1149989]
[1743095678140,0.2821974,86974.0,86973.0,0.2283989]
[1743095678445,0.2881974,86974.0,86973.0,0.2283989]
[1743095678645,0.2931974,86974.0,86973.0,0.2283989]
[1743095678949,0.2931974,86974.0,86973.0,0.1149989]
[1743095679647,0.2938774,86974.0,86973.0,0.1149989]
[1743095679852,0.2938774,86974.0,86973.0,0.1159589]
[1743095680046,0.2878774,86974.0,86973.0,0.00096]
[1743095680241,0.1725076,86969.0,86968.0,0.2300043]
[1743095680440,0.17346761,86969.0,86968.0,0.2883643]
[1743095681045,0.28426761,86969.0,86968.0,0.2883643]
[1743095681547,0.28926761,86969.0,86968.0,0.2883643]
[1743095681746,0.29526761,86969.0,86968.0,0.2883643]
[1743095685351,0.12276001,86969.0,86968.0,0.29887211]
[1743095685649,0.1218,86969.0,86968.0,0.29887211]
[1743095685850,0.00032,86975.0,86974.0,0.1149975]
[1743095686149,0.00032,86975.0,86974.0,0.2791775]
[1743095686150,0.00164,86975.0,86974.0,0.2791775]
[1743095686354,0.00032,86975.0,86974.0,0.2791775]
[1743095687259,0.00532,86975.0,86974.0,0.2801775]
[1743095687452,0.007,86975.0,86974.0,0.2801775]
[1743095687854,0.002,86975.0,86974.0,0.2791775]
[1743095688152,0.004,86975.0,86974.0,0.2791775]
[1743095688750,0.3608,86989.0,86981.0,0.1149883]
[1743095688956,8e-05,86984.0,86981.0,0.1164683]
[1743095689155,0.00161251,86982.0,86981.0,0.2303683]
[1743095689343,0.00017251,86982.0,86981.0,0.2303683]
[1743095689547,0.11515951,86982.0,86981.0,0.24044518]
[1743095689748,0.11667951,86982.0,86981.0,0.24044518]
[1743095690147,0.11667951,86982.0,86981.0,0.2303683]
[1743095690358,0.1271032,86982.0,86981.0,0.00148]
[1743095690656,0.2981032,86982.0,86981.0,0.1164683]
[1743095690850,0.3011032,86982.0,86981.0,0.1164683]
[1743095691252,0.11729251,86982.0,86981.0,0.1164683]
[1743095691456,0.23227951,86982.0,86981.0,0.1164683]
[1743095691754,0.23075951,86982.0,86981.0,0.2310683]
[1743095692058,0.23219951,86982.0,86981.0,0.24110722]
[1743095692262,0.23135952,86982.0,86981.0,0.24110722]
[1743095694045,0.11637252,86982.0,86981.0,0.24110722]
[1743095694654,0.11721251,86982.0,86981.0,0.24110722]
[1743095696461,0.11577251,86982.0,86981.0,0.24110722]
[1743095696655,0.11721251,86982.0,86981.0,0.24110722]
[1743095696854,0.11577251,86982.0,86981.0,0.24110722]
[1743095697955,0.23075951,86982.0,86981.0,0.24110722]
[1743095698156,0.11577251,86982.0,86981.0,0.24110722]
[1743095698763,0.11725251,86982.0,86981.0,0.24110722]
[1743095698954,0.11577251,86982.0,86981.0,0.24110722]
[1743095700159,0.23075951,86982.0,86981.0,0.24110722]
[1743095700356,0.23227951,86982.0,86981.0,0.24110722]
[1743095700858,0.23227951,86982.0,86981.0,0.2310683]
[1743095701065,0.23227951,86982.0,86981.0,0.00148]
[1743095701264,0.28757951,86982.0,86981.0,0.00148]
[1743095701464,0.2299903,86980.0,86979.0,0.11499]
[1743095701774,0.2314303,86980.0,86979.0,0.11651]
[1743095703961,0.2344303,86980.0,86979.0,0.11651]
[1743095704652,0.00444,86980.0,86979.0,0.11651]
[1743095704858,0.1194296,86980.0,86979.0,0.22731]
[1743095705057,0.1194296,86980.0,86979.0,0.11651]
[1743095705260,0.2317296,86980.0,86979.0,0.11651]
[1743095706363,0.2317296,86980.0,86979.0,0.00152]
[1743095706867,0.2317296,86980.0,86979.0,0.1165109]
[1743095708567,0.2317296,86980.0,86979.0,0.00152]
[1743095709067,0.1149975,86974.0,86973.0,0.00017251]
[1743095709258,0.4764775,86974.0,86973.0,0.00017251]
[1743095709459,0.6472775,86974.0,86973.0,0.00017251]
[1743095709860,0.6472775,86974.0,86973.0,0.00161251]
[1743095710059,0.6472775,86974.0,86973.0,0.00017251]
[1743095710270,0.6482775,86974.0,86973.0,0.00017251]
[1743095710870,0.6482775,86974.0,86973.0,0.00161251]
[1743095711573,0.6482775,86974.0,86973.0,0.00017251]
[1743095711872,0.6482775,86974.0,86973.0,0.00161251]
[1743095712062,0.6482775,86974.0,86973.0,0.00017251]
[1743095712263,0.6482775,86974.0,86973.0,0.00165251]
[1743095713168,0.6482775,86974.0,86973.0,0.00017251]
[1743095713373,0.2874775,86974.0,86973.0,0.00161251]
[1743095713874,0.2874775,86974.0,86973.0,0.11661141]
[1743095714265,0.2874775,86974.0,86973.0,0.23311141]
[1743095714473,0.2305775,86974.0,86973.0,0.23311141]
[1743095714670,0.00168,86974.0,86973.0,0.29031141]
[1743095714882,0.001,86974.0,86973.0,0.29031141]
[1743095715171,0.00244,86974.0,86973.0,0.29031141]
[1743095715361,0.1174375,86974.0,86973.0,0.29031141]
[1743095715767,0.13751472,86975.0,86974.0,0.1149975]
[1743095715975,0.17185242,86981.0,86980.0,0.1149896]
[1743095716166,0.17185242,86981.0,86980.0,0.4776696]
[1743095716674,0.17185242,86981.0,86980.0,0.5883696]
[1743095716870,0.17177242,86981.0,86980.0,0.5883696]
[1743095717270,0.22887242,86981.0,86980.0,0.5883696]
[1743095717575,0.27977242,86981.0,86980.0,0.5883696]
[1743095717770,0.39476072,86981.0,86980.0,0.5883696]
[1743095718473,0.27977242,86981.0,86980.0,0.59845479]
[1743095718865,0.39476072,86981.0,86980.0,0.5883696]
[1743095719066,0.2229883,86981.0,86980.0,0.5883696]
[1743095719572,0.2259883,86981.0,86980.0,0.5883696]
[1743095719769,0.003,86981.0,86980.0,0.5883696]
[1743095723168,0.1179883,86981.0,86980.0,0.5883696]
[1743095723477,0.2290883,86981.0,86980.0,0.4776696]
[1743095724177,0.2290883,86981.0,86980.0,0.5295696]
[1743095724477,0.2290883,86981.0,86980.0,0.4776696]
[1743095726980,0.2290883,86981.0,86980.0,0.1168696]
[1743095727173,0.2290883,86981.0,86980.0,0.00188]
[1743095727479,0.2290883,86981.0,86980.0,0.1168696]
[1743095728071,0.2290883,86981.0,86980.0,0.2267696]
[1743095729575,0.1731883,86981.0,86980.0,0.2267696]
[1743095729776,0.1731883,86981.0,86980.0,0.2815696]
[1743095731586,0.2265883,86981.0,86980.0,0.2815696]
[1743095732975,0.1179883,86981.0,86980.0,0.2815696]